bitfinex-derivatives/quotes_ETHF0:USTF0_20240831
["timestamp","ask_amount","ask_price","bid_price","bid_amount"]
[1725126473449,3.45,2502.5,2502.4,0.3727]
[1725126473755,3.45,2502.5,2502.4,0.61245]
[1725126477347,3.2078,2502.6,2502.5,0.23974]
[1725126477648,3.2078,2502.6,2502.5,0.95424]
[1725126479162,3.45,2502.8,2502.6,0.23973]
[1725126479562,3.45,2502.8,2502.7,0.23972]
[1725126479952,7.0168,2503.0,2502.9,0.2397]
[1725126480153,6.6578,2503.0,2502.9,0.2397]
[1725126480347,6.6578,2503.0,2502.8,0.23971]
[1725126480555,0.23971,2502.9,2502.6,0.23973]
[1725126480749,3.45,2502.7,2502.5,0.95424]
[1725126480950,3.45,2502.7,2502.6,0.23973]
[1725126481158,3.8122,2502.7,2502.6,0.23973]
[1725126481859,3.45,2502.7,2502.6,0.23973]
[1725126482063,3.45,2502.9,2502.8,0.23971]
[1725126482362,3.2078,2503.4,2503.1,0.23968]
[1725126482363,3.45,2503.2,2503.1,0.23968]
[1725126482952,7.4452,2503.2,2502.5,0.7145]
[1725126483154,3.45,2502.9,2502.5,0.7145]
[1725126483565,4.3462413,2502.8,2502.7,0.23972]
[1725126484063,3.68971,2502.9,2502.6,0.23973]
[1725126484276,3.45,2502.9,2502.7,0.23972]
[1725126484869,3.45,2502.9,2502.8,0.62631]
[1725126485055,3.44749,2503.1,2502.8,0.3866]
[1725126485056,3.45,2503.1,2502.8,0.3866]
[1725126485260,3.45,2503.1,2503.0,0.2397]
[1725126492568,3.45,2503.1,2502.9,0.5987]
[1725126492777,0.3658,2503.0,2502.9,0.2397]
[1725126492964,0.7391,2503.0,2502.9,0.2397]
[1725126494473,0.7391,2503.0,2502.8,0.3866]
[1725126494769,3.807,2502.9,2502.2,4.113]
[1725126494966,4.04671,2502.9,2502.6,0.23973]
[1725126495157,4.38658834,2502.8,2502.6,0.23973]
[1725126497776,3.68973,2502.7,2502.4,0.95495]
[1725126497965,0.383,2502.6,2502.5,0.23974]
[1725126498167,3.45,2502.7,2502.6,0.23973]
[1725126498363,3.54992339,2502.7,2502.6,0.23973]
[1725126498774,0.09992339,2502.7,2502.6,0.23973]
[1725126499169,3.807,2502.9,2502.8,0.23971]
[1725126499370,3.90691771,2502.9,2502.8,0.23971]
[1725126499879,3.90691771,2502.9,2502.7,0.23972]
[1725126500173,3.807,2502.9,2502.7,0.23972]
[1725126500372,1.44,2502.8,2502.7,0.23972]
[1725126501568,1.44,2502.8,2502.6,0.23973]
[1725126502671,1.44,2502.8,2502.7,0.23972]
[1725126506382,1.797,2502.9,2502.8,0.23971]
[1725126506678,1.89691905,2502.9,2502.8,0.23971]
[1725126507768,1.53991905,2502.9,2502.8,0.23971]
[1725126507971,1.5399185,2502.9,2502.8,0.23971]
[1725126508574,1.9212185,2502.9,2502.8,0.23971]
[1725126509771,0.4812185,2502.9,2502.8,0.23971]
[1725126510083,1.9212185,2502.9,2502.8,0.23971]
[1725126511789,1.5399185,2502.9,2502.8,4.23491]
[1725126511984,1.44,2502.9,2502.8,4.23491]
[1725126512183,1.44,2502.9,2502.8,0.23971]
[1725126512184,1.53991708,2502.9,2502.8,0.23971]
[1725126512383,1.44,2502.9,2502.8,0.23971]
[1725126512592,1.53991822,2502.9,2502.7,0.23972]
[1725126512892,1.8164,2502.8,2502.7,0.23972]
[1725126513183,1.8164,2502.8,2502.4,0.7152]
[1725126513184,1.8164,2502.8,2502.6,0.23973]
[1725126513380,1.8164,2502.8,2502.7,0.23972]
[1725126514295,1.8164,2502.8,2502.6,0.23973]
[1725126514478,3.44753,2502.7,2502.4,0.23975]
[1725126514683,1.44,2502.5,2502.3,0.23975]
[1725126515088,0.375,2502.4,2502.3,0.23975]
[1725126515787,3.5828,2502.4,2502.3,0.23976]
[1725126516688,0.375,2502.4,2502.3,0.23976]
[1725126517192,0.375,2502.4,2502.2,4.113]
[1725126517193,0.375,2502.4,2502.2,4.35277]
[1725126518195,3.5828,2502.4,2502.2,4.113]
[1725126518389,0.375,2502.4,2502.2,4.35277]
[1725126519402,0.375,2502.4,2502.2,0.23977]
[1725126520285,0.375,2502.4,2502.3,0.23976]
[1725126520983,0.375,2502.4,2502.2,0.23977]
[1725126522991,1.44,2502.3,2502.1,0.98348]
[1725126523189,0.3825,2502.2,2502.1,0.98348]
[1725126523490,0.3825,2502.2,2502.0,0.23979]
[1725126523793,1.44,2502.1,2501.9,0.23979]
[1725126524183,0.3535,2502.0,2501.9,0.23979]
[1725126532795,0.3535,2502.0,2501.7,0.3851]
[1725126532989,1.44,2501.9,2501.6,0.59412]
[1725126533188,4.86769624,2502.0,2501.6,0.59412]
[1725126533189,1.44,2501.7,2501.6,0.59412]
[1725126533992,1.44,2501.8,2501.7,0.23982]
[1725126534202,1.44,2501.8,2501.7,0.60902]
[1725126540909,1.44,2501.8,2501.7,0.23982]
[1725126541907,4.6478,2501.8,2501.4,0.3697]
[1725126542111,1.44,2501.5,2501.4,0.3697]
[1725126542804,1.44,2501.5,2501.4,0.60955]
[1725126543003,9.18309675,2501.5,2501.4,0.23985]
[1725126543205,9.18309675,2501.5,2501.3,0.23985]
[1725126543506,5.97529675,2501.5,2501.3,0.23985]
[1725126544310,3.9976,2501.4,2501.1,3.2078]
[1725126544512,1.67986,2501.3,2501.0,4.113]
[1725126544812,1.44,2501.1,2501.0,4.113]
[1725126545115,1.44,2501.1,2500.8,0.2399]
[1725126545116,9.78216516,2501.1,2500.8,0.44217908]
[1725126545302,9.78216516,2501.1,2500.8,0.2399]
[1725126545303,5.78376516,2501.1,2500.8,0.2399]
[1725126545508,8.99156516,2501.1,2500.8,0.2399]
[1725126545716,8.99156516,2501.1,2500.8,0.43962011]
[1725126546029,8.99156516,2501.1,2500.8,0.19972011]
[1725126546208,4.34376516,2501.1,2500.8,0.396]
[1725126546411,1.44,2501.1,2501.0,0.23989]
[1725126546609,1.44,2501.1,2500.9,0.3625]
[1725126546909,1.44,2501.1,2501.0,0.23989]
[1725126547116,3.2078,2501.4,2501.1,0.23987]
[1725126547309,1.44,2501.2,2501.1,0.23987]
[1725126547704,1.44,2501.2,2501.1,4.23827]
[1725126549108,3.2078,2501.4,2501.2,0.23986]
[1725126549317,3.2078,2501.4,2501.3,0.60986]
[1725126549617,1.44,2501.5,2501.3,0.37]
[1725126550204,1.44,2501.5,2501.3,0.60986]
[1725126550716,0.3603,2501.7,2501.3,0.37]
[1725126550920,0.3603,2501.7,2501.5,0.23984]
[1725126551109,5.74309932,2501.6,2501.5,0.23984]
[1725126551305,1.44,2501.7,2501.6,0.23983]
[1725126551515,1.44,2502.0,2501.6,6.0]
[1725126551712,1.44,2502.0,2501.9,0.2398]
[1725126551909,1.44,2502.0,2501.8,0.2398]
[1725126552212,1.44,2501.9,2501.7,0.3665]
[1725126552409,9.28675831,2501.9,2501.6,0.23983]
[1725126552614,1.44,2501.7,2501.5,0.23983]
[1725126552824,1.44,2501.7,2501.5,0.23984]
[1725126553014,1.44,2501.7,2501.5,0.61404]
[1725126553321,1.44,2501.7,2501.5,0.61403]
[1725126553716,1.7994,2501.7,2501.5,0.61403]
[1725126554022,1.44,2501.7,2501.6,0.23983]
[1725126554319,1.44,2501.9,2501.7,0.23981]
[1725126554525,1.44,2501.9,2501.8,0.3665]
[1725126555026,1.44,2501.9,2501.8,4.60311]
[1725126557421,1.44,2501.9,2501.8,4.3633]
[1725126557617,1.44,2501.9,2501.7,0.23981]
[1725126557819,0.7391,2501.8,2501.7,0.23981]
[1725126558126,0.7391,2501.8,2501.5,0.61403]
[1725126558417,1.44,2501.7,2501.6,0.23983]
[1725126558619,1.44,2501.9,2501.7,0.23982]
[1725126558825,0.3609,2502.1,2501.8,0.3872]
[1725126559021,4.170108,2502.0,2501.8,0.3872]
[1725126559215,1.806,2502.2,2502.0,0.23979]
[1725126560318,1.806,2502.2,2501.9,0.3789]
[1725126560525,1.44,2502.0,2501.9,0.6187]
[1725126560919,1.44,2502.0,2501.9,0.3789]
[1725126561322,1.44,2502.0,2501.6,4.113]
[1725126561518,1.44,2501.8,2501.6,4.35283]
[1725126561917,1.44,2501.8,2501.6,4.72273]
[1725126563032,1.44,2501.8,2501.7,0.23982]
[1725126563530,1.44,2501.9,2501.8,0.23981]
[1725126563729,1.44,2501.9,2501.7,0.23982]
[1725126564027,1.44,2501.8,2501.6,0.60972]
[1725126564228,1.8034,2501.8,2501.6,0.60972]
[1725126564828,1.8034,2501.8,2501.5,0.7513]
[1725126564829,1.8034,2501.8,2501.5,0.99113]
[1725126565230,0.3679,2501.7,2501.5,0.99113]
[1725126565529,0.7566,2501.7,2501.5,0.99113]
[1725126566027,0.99642,2501.7,2501.4,6.967]
[1725126568826,0.99642,2501.7,2501.4,7.20685]
[1725126569221,0.99642,2501.7,2501.4,6.967]
[1725126569426,0.99642,2501.7,2501.4,7.20685]
[1725126569651,0.99642,2501.7,2501.4,6.967]
[1725126569825,1.67983,2501.6,2501.3,0.60085]
[1725126570029,0.23984,2501.5,2501.3,0.361]
[1725126570334,1.44,2501.4,2501.3,0.361]
[1725126570528,1.8216,2501.4,2501.3,0.60086]
[1725126571032,1.8216,2501.4,2501.3,0.361]
[1725126573032,1.8216,2501.4,2501.2,0.353]
[1725126573235,0.3606,2501.3,2501.1,0.23987]
[1725126573434,0.7373,2501.3,2501.1,0.23987]
[1725126573640,0.7373,2501.3,2501.2,0.23987]
[1725126574030,0.7373,2501.3,2501.1,0.23987]
[1725126574234,0.7373,2501.3,2501.1,0.23988]
[1725126574731,0.7373,2501.3,2501.0,0.7529]
[1725126574732,0.7373,2501.3,2501.2,0.23987]
[1725126575033,1.8216,2501.4,2501.2,0.23987]
[1725126575239,1.8216,2501.4,2501.2,0.23986]
[1725126575738,1.8216,2501.4,2501.3,0.23986]
[1725126576042,1.8216,2501.4,2501.0,0.7529]
[1725126576236,1.8216,2501.4,2501.2,0.23987]
[1725126576736,1.8216,2501.4,2501.3,0.23986]
[1725126576931,0.3767,2501.7,2501.1,3.2078]
[1725126577132,1.8236,2501.6,2501.5,0.23984]
[1725126577440,6.39529658,2501.6,2501.5,0.23984]
[1725126579239,3.2078,2502.2,2502.0,0.23979]
[1725126579441,5.4075,2502.2,2502.1,0.23978]
[1725126579672,5.4075,2502.2,2502.0,0.23979]
[1725126580139,9.76318625,2502.1,2501.3,1.04550916]
[1725126580343,9.76318625,2502.1,2501.3,0.23986]
[1725126580344,1.44,2501.4,2501.3,0.23986]
[1725126581339,1.44,2501.4,2501.2,1.00036]
[1725126581532,1.44,2501.4,2501.2,0.7605]
[1725126581842,1.44,2501.4,2501.2,1.00037]
[1725126582042,1.44,2501.4,2501.2,1.2043031]
[1725126582244,0.725,2501.5,2501.2,1.2043031]
[1725126583337,1.33674,2501.5,2501.2,1.00037]
[1725126583845,1.0969,2501.5,2501.2,1.00037]
[1725126584638,1.33674,2501.5,2501.2,1.00037]
[1725126584833,4.63226346,2501.4,2501.1,0.80842875]
[1725126585159,4.87211346,2501.4,2501.0,0.23988]
[1725126585337,0.23986,2501.3,2501.0,0.23988]
[1725126585646,4.48729754,2501.2,2500.9,1.00269]
[1725126585833,0.7179,2501.1,2500.9,1.00269]
[1725126586035,1.1001,2501.1,2500.9,1.00269]
[1725126586542,1.1001,2501.1,2500.9,0.7628]
[1725126587340,1.33998,2501.1,2500.7,0.60451]
[1725126587547,4.78998,2501.1,2500.7,0.60451]
[1725126588340,4.59082238,2501.0,2500.6,1.15469802]
[1725126588643,4.35093238,2501.0,2500.7,0.23991]
[1725126589551,3.6899,2500.9,2500.6,0.3556]
[1725126589938,4.33063666,2500.8,2500.6,0.3556]
[1725126590139,4.57054666,2500.8,2500.6,0.3556]
[1725126590445,0.382,2500.7,2500.6,0.3556]
[1725126591134,0.382,2500.7,2500.5,3.2078]
[1725126591946,0.382,2500.7,2500.5,3.44773]
[1725126592743,0.382,2500.7,2500.6,0.23993]
[1725126594347,0.382,2500.7,2500.4,3.9697]
[1725126594554,0.382,2500.7,2500.6,0.23993]
[1725126596654,0.00599197,2501.0,2500.4,3.9697]
[1725126596846,0.38579197,2501.0,2500.4,4.56957]
[1725126597157,4.46497672,2500.9,2500.8,0.2399]
[1725126598561,4.46497672,2500.9,2500.4,3.9697]
[1725126598856,4.46497672,2500.9,2500.8,0.23991]
[1725126599350,11.91337672,2500.9,2500.4,3.9697]
[1725126599549,0.3533,2500.8,2500.6,0.23992]
[1725126599752,0.73,2500.8,2500.6,0.23992]
[1725126599956,0.73,2500.8,2500.1,0.59992]
[1725126599957,3.2078,2500.4,2498.7,4.00007197]
[1725126600166,3.2078,2500.4,2497.9,4.18270968]
[1725126600167,6.6578,2498.8,2497.7,1.04582368]
[1725126600356,3.2078,2498.8,2498.4,5.2847954]
[1725126600546,3.2078,2498.8,2498.7,5.2847954]
[1725126600750,3.45,2499.1,2498.7,5.2847954]
[1725126600963,0.10007244,2499.0,2498.8,5.2847954]
[1725126601155,0.10007244,2499.0,2498.1,0.3886]
[1725126601156,4.38717807,2499.0,2498.1,0.3886]
[1725126601352,3.45,2498.8,2498.5,5.2847954]
[1725126601749,0.20583954,2498.7,2498.5,5.2847954]
[1725126602244,0.20583954,2498.7,2498.3,0.3612]
[1725126602445,6.6578,2499.1,2498.7,0.2401]
[1725126602650,6.6578,2499.1,2499.0,5.2847954]
[1725126603150,11.11247311,2499.1,2499.0,5.2847954]
[1725126603652,11.11247311,2499.1,2498.6,3.5844]
[1725126603860,11.11247311,2499.1,2498.8,5.2847954]
[1725126604050,11.11247311,2499.1,2499.0,5.2847954]
[1725126607658,7.66247311,2499.1,2499.0,5.5248754]
[1725126607853,3.2078,2499.1,2499.0,5.5248754]
[1725126608047,2.0312,2499.1,2499.0,5.5248754]
[1725126608350,3.45,2499.6,2499.0,8.58162898]
[1725126608557,3.45,2499.6,2499.4,0.24004]
[1725126608755,7.84166016,2499.6,2499.5,5.2847954]
[1725126608959,3.45,2499.6,2499.5,5.2847954]
[1725126609457,7.84166016,2499.6,2499.1,0.3819]
[1725126609649,4.39166016,2499.6,2499.4,5.2847954]
[1725126609849,3.45,2499.5,2499.4,5.2847954]
[1725126610250,7.75632316,2499.5,2499.4,5.2847954]
[1725126612152,4.30632316,2499.5,2499.4,5.2847954]
[1725126612353,3.45599197,2499.7,2499.4,5.2847954]
[1725126612661,3.45599197,2499.7,2499.6,5.2847954]
[1725126613160,7.95878243,2499.7,2499.6,5.2847954]
[1725126613559,7.95878243,2499.7,2499.2,0.24006]
[1725126613759,7.95878243,2499.7,2499.5,5.2847954]
[1725126614061,7.95878243,2499.7,2499.6,5.5248154]
[1725126614658,4.50878243,2499.7,2499.6,5.5248154]
[1725126614958,0.00599197,2499.7,2499.6,5.5248154]
[1725126615258,0.00599197,2499.7,2499.6,6.2931154]
[1725126615459,3.45,2500.2,2500.0,0.23998]
[1725126615667,3.45,2500.2,2500.1,5.2847954]
[1725126616758,3.45,2500.2,2500.1,5.5247654]
[1725126617265,6.6638042,2500.4,2500.2,0.23996]
[1725126617453,6.6638042,2500.4,2500.3,0.23995]
[1725126617765,0.0060042,2500.4,2500.3,5.5247454]
[1725126619160,4.40883983,2500.4,2500.3,5.2847954]
[1725126619361,4.40883983,2500.4,2500.3,5.5247454]
[1725126620955,0.0060042,2500.4,2500.3,5.5247454]
[1725126621357,0.0060042,2500.4,2500.3,11.5247454]
[1725126622862,3.45,2501.0,2500.7,0.23991]
[1725126623171,3.45,2501.0,2500.9,5.2847954]
[1725126623367,3.45,2501.0,2500.7,5.2847954]
[1725126623368,3.6899,2501.0,2500.7,5.2847954]
[1725126623567,6.6578,2500.8,2500.7,5.2847954]
[1725126623870,7.77110521,2500.8,2500.7,5.2847954]
[1725126624074,11.21881521,2500.8,2500.4,4.113]
[1725126624365,11.21881521,2500.8,2500.6,5.2847954]
[1725126624366,7.91420521,2500.8,2500.6,5.2847954]
[1725126624569,7.91420521,2500.8,2500.4,4.35294]
[1725126624570,3.45,2500.7,2500.4,4.35294]
[1725126624865,4.35566077,2500.6,2500.4,9.6377354]
[1725126625460,4.35566077,2500.6,2500.4,9.3977954]
[1725126626064,3.2078,2500.5,2500.4,9.3977954]
[1725126626270,4.35566077,2500.6,2500.4,9.3977954]
[1725126626458,3.45,2500.7,2500.4,5.2847954]
[1725126626459,4.36185423,2500.5,2500.4,5.2847954]
[1725126626664,4.62600284,2500.6,2500.4,5.5247354]
[1725126627066,3.45,2500.7,2500.4,5.5247354]
[1725126627371,3.5931,2500.8,2500.4,5.5247354]
[1725126627372,4.62600284,2500.6,2500.4,5.5247354]
[1725126627673,4.3703296,2500.7,2500.4,5.2847954]
[1725126627860,4.3703296,2500.7,2500.4,5.5247354]
[1725126628061,4.3703296,2500.7,2500.2,0.7094]
[1725126628062,3.45,2500.9,2500.5,0.23993]
[1725126628270,0.0060042,2501.0,2500.7,5.5247054]
[1725126628473,4.3703296,2500.8,2500.7,5.2847954]
[1725126628773,4.32983578,2500.9,2500.7,6.0454954]
[1725126628962,0.0060042,2501.0,2500.7,6.0454954]
[1725126629168,4.32983578,2500.9,2500.7,6.0454954]
[1725126629363,3.2078,2500.8,2500.7,5.2847954]
[1725126629570,3.2078,2500.8,2500.4,0.23994]
[1725126629774,7.55604361,2500.8,2500.5,5.2847954]
[1725126629976,4.34824361,2500.8,2500.5,5.2847954]
[1725126630570,4.34824361,2500.8,2500.6,5.2847954]
[1725126631375,7.55604361,2500.8,2500.6,5.2847954]
[1725126631982,8.16895361,2500.8,2500.4,0.23994]
[1725126632170,7.92904361,2500.8,2500.5,5.2847954]
[1725126632665,8.16895361,2500.8,2500.5,5.2847954]
[1725126632868,7.92904361,2500.8,2500.5,5.2847954]
[1725126633179,4.72124361,2500.8,2500.5,5.2847954]
[1725126633481,4.72124361,2500.8,2500.5,5.5247254]
[1725126633672,4.72124361,2500.8,2500.1,3.2078]
[1725126633673,3.45,2500.6,2499.9,0.0060042]
[1725126633980,3.45,2500.1,2499.9,0.0060042]
[1725126634274,0.23998,2500.0,2499.9,0.0060042]
[1725126634476,4.85731741,2500.0,2499.9,0.0060042]
[1725126634776,4.61733741,2500.0,2499.9,0.0060042]
[1725126635172,4.24433741,2500.0,2499.9,0.0060042]
[1725126635872,4.24433741,2500.0,2499.9,5.2907996]
[1725126636074,4.24433741,2500.0,2499.9,5.5307896]
[1725126638980,4.24433741,2500.0,2499.9,5.2907996]
[1725126643581,4.24433741,2500.0,2499.9,5.5307896]
[1725126643879,4.24433741,2500.0,2499.9,5.6785996]
[1725126644979,4.24433741,2500.0,2498.7,1.04582368]
[1725126644980,0.24004,2499.4,2498.5,3.2078]
[1725126645279,4.78619181,2499.3,2499.2,3.9803996]
[1725126645689,0.24006,2499.2,2499.0,0.3661]
[1725126645879,4.54533193,2499.3,2499.1,3.9803996]
[1725126646382,0.24006,2499.2,2499.1,3.9803996]
[1725126646579,7.74712773,2499.2,2499.1,3.9803996]
[1725126650881,7.74712773,2499.2,2499.0,0.3661]
[1725126651082,7.74712773,2499.2,2499.0,4.3464996]
[1725126651792,0.24007,2499.1,2499.0,4.3464996]
[1725126651992,7.74712773,2499.2,2499.0,4.3464996]
[1725126652196,4.34358076,2499.1,2499.0,4.3464996]
[1725126653389,3.2078,2499.2,2499.0,4.3464996]
[1725126653691,0.0060042,2499.3,2499.2,0.24006]
[1725126653892,0.0060042,2499.3,2499.2,4.9724596]
[1725126656790,3.2078,2499.6,2499.5,0.24003]
[1725126656989,3.45,2499.9,2499.6,0.24002]
[1725126657291,4.36959608,2499.8,2499.7,4.3720996]
[1725126657897,4.36959608,2499.8,2499.7,4.7328996]
[1725126658296,4.36959608,2499.8,2499.7,4.9729096]
[1725126658491,4.36959608,2499.8,2499.7,4.7328996]
[1725126659203,4.36959608,2499.8,2499.7,4.9729096]
[1725126659399,0.60004,2499.7,2498.9,0.0060042]
[1725126659599,3.69008,2499.0,2498.9,3.9864038]
[1725126659805,3.69008,2499.0,2498.9,0.0060042]
[1725126660003,8.12494318,2499.0,2498.9,0.0060042]
[1725126660392,18.12654318,2499.0,2498.9,0.0060042]
[1725126660597,18.12654318,2499.0,2498.5,0.7414]
[1725126660598,0.2401,2498.8,2498.5,0.7414]
[1725126660798,6.6578,2498.6,2498.5,4.7217996]
[1725126661003,6.6578,2498.6,2498.2,0.20137827]
[1725126661206,11.01745337,2498.6,2498.4,3.9803996]
[1725126661901,0.24013,2498.5,2498.4,3.9803996]
[1725126662097,21.01985337,2498.6,2498.3,0.0060042]
[1725126662409,3.69014,2498.4,2498.3,0.0060042]
[1725126662709,8.19464263,2498.4,2498.3,0.0060042]
[1725126662893,11.95690263,2498.4,2498.3,0.0060042]
[1725126663093,7.95450263,2498.4,2498.3,0.0060042]
[1725126663706,8.19464263,2498.4,2498.3,0.0060042]
[1725126664808,7.95450263,2498.4,2498.3,0.0060042]
[1725126665306,18.19704263,2498.4,2498.3,0.0060042]
[1725126665514,18.19704263,2498.4,2497.7,0.3802]
[1725126665715,0.24023,2497.5,2497.0,0.24027]
[1725126666012,0.24023,2497.5,2495.8,0.00337599]
[1725126666013,10.1078,2497.1,2495.8,0.00337599]
[1725126666199,3.2078,2496.7,2495.9,0.24037]
[1725126666405,3.2078,2496.7,2496.3,3.9803996]
[1725126666607,4.51538273,2496.6,2496.4,3.9803996]
[1725126666801,4.51538273,2496.6,2496.2,3.2078]
[1725126667004,3.92698273,2496.6,2496.5,3.7252196]
[1725126667206,3.92698273,2496.6,2495.8,0.00337599]
[1725126667207,3.45,2496.6,2495.8,0.00337599]
[1725126667419,3.2078,2495.8,2493.7,1.04034067]
[1725126667721,3.2078,2495.8,2493.1,6.6578]
[1725126667722,3.2078,2494.8,2494.3,4.5693146]
[1725126668099,3.2078,2494.8,2493.7,3.45]
[1725126668100,8.02292805,2494.7,2493.7,3.45]
[1725126668411,3.2078,2494.5,2494.3,0.0060042]
[1725126668703,3.2078,2494.5,2494.4,0.01540159]
[1725126669113,7.68381538,2494.5,2494.4,4.58471619]
[1725126669299,4.0088,2494.4,2493.3,3.5774]
[1725126669505,7.68381538,2494.5,2493.8,4.5693146]
[1725126669704,4.64905463,2494.3,2494.0,4.5693146]
[1725126669905,4.64905463,2494.4,2494.2,4.5693146]
[1725126670211,3.2078,2494.5,2493.3,3.5774]
[1725126670212,3.2078,2494.5,2494.3,4.5693146]
[1725126670408,0.0060042,2494.8,2494.4,4.5693146]
[1725126670712,3.2078,2494.5,2493.6,3.2078]
[1725126671004,3.2078,2494.5,2494.1,0.24055]
[1725126671215,3.2078,2494.5,2494.3,4.5693146]
[1725126671414,4.61837472,2494.4,2493.6,3.2078]
[1725126671608,3.2138042,2494.8,2494.4,0.24052]
[1725126671803,3.2138042,2494.8,2494.7,4.5693146]
[1725126672003,4.2e-06,2494.8,2494.7,4.8098046]
[1725126672206,3.2078,2495.7,2494.9,0.24047]
[1725126672405,3.2078,2495.4,2495.0,4.5693146]
[1725126672614,8.9567067,2495.6,2495.0,4.5693146]
[1725126672809,4.19342668,2495.3,2495.1,4.5693146]
[1725126673111,0.0060042,2495.4,2495.2,4.8097546]
[1725126673513,4.19342668,2495.3,2495.2,0.24044]
[1725126674011,4.19342668,2495.3,2495.2,4.8097546]
[1725126674211,0.0060042,2495.4,2495.3,0.24044]
[1725126674412,0.0060042,2495.4,2495.3,5.1726546]
[1725126674816,0.0060042,2495.4,2495.3,4.9322146]
[1725126675016,14.55219998,2495.4,2495.0,0.0060042]
[1725126675207,3.2078,2495.2,2495.0,0.0060042]
[1725126675414,3.2078,2495.2,2495.0,0.2464642]
[1725126675606,3.2078,2495.2,2495.1,4.8097646]
[1725126676007,7.76164102,2495.2,2495.1,4.5693146]
[1725126676222,7.76164102,2495.2,2495.1,4.8097646]
[1725126676614,4.55384102,2495.2,2495.1,4.8097646]
[1725126677121,4.630076,2495.3,2495.1,4.5693146]
[1725126677318,4.630076,2495.3,2495.0,0.0060042]
[1725126677319,3.2078,2495.3,2495.0,0.0060042]
[1725126677513,7.837876,2495.3,2495.0,0.0060042]
[1725126677714,7.837876,2495.3,2495.2,0.24044]
[1725126677922,7.837876,2495.3,2495.1,0.24045]
[1725126678116,7.837876,2495.3,2495.2,0.24044]
[1725126678423,7.837876,2495.3,2495.1,4.5693146]
[1725126678923,0.24051,2494.6,2493.6,3.2078]
[1725126679112,4.62,2494.8,2494.3,1.9240246]
[1725126679315,4.62,2494.8,2493.6,3.2078]
[1725126679316,4.51042154,2494.5,2494.4,0.24052]
[1725126679513,7.12508328,2495.0,2494.9,0.24047]
[1725126679711,3.2078,2495.0,2494.9,1.9240246]
[1725126679911,3.2078,2495.0,2494.9,2.1644946]
[1725126680114,4.62738828,2495.0,2494.9,1.9240246]
[1725126680720,14.63538828,2495.0,2494.0,3.2078]
[1725126680919,4.62738828,2495.0,2494.6,1.9240246]
[1725126681314,4.62738828,2495.0,2494.3,0.24053]
[1725126681315,4.62,2494.8,2494.1,0.24054]
[1725126681513,3.2078,2494.6,2494.3,1.9240246]
[1725126681915,3.2078,2494.6,2493.5,0.3621]
[1725126681916,4.3590075,2494.5,2493.6,3.2078]
[1725126682121,8.9790075,2494.5,2494.1,1.9240246]
[1725126682332,8.9790075,2494.5,2494.3,1.9240246]
[1725126682629,4.3590075,2494.5,2494.3,1.9240246]
[1725126682920,9.04309024,2494.8,2494.4,0.24052]
[1725126683127,3.67870534,2494.7,2494.3,1.9240246]
[1725126683311,4.62,2494.8,2494.3,1.9240246]
[1725126683513,4.42309024,2494.7,2494.4,1.9240246]
[1725126683824,0.0060042,2495.4,2494.2,3.2078]
[1725126684022,0.0060042,2495.4,2495.0,2.1644846]
[1725126684222,4.41897023,2495.3,2495.1,0.24045]
[1725126684625,8.42697023,2495.3,2495.1,0.24045]
[1725126684825,8.42697023,2495.3,2495.0,0.24046]
[1725126685027,4.41897023,2495.3,2495.1,0.24045]
[1725126685222,11.8358,2495.2,2494.3,4.8627]
[1725126685523,4.36260663,2495.1,2495.0,1.9240246]
[1725126685734,4.36260663,2495.1,2495.0,0.24046]
[1725126686023,4.36260663,2495.1,2495.0,2.1644846]
[1725126686628,4.48560779,2495.3,2495.0,2.1644846]
[1725126686818,0.0060042,2495.4,2495.2,1.9240246]
[1725126687221,4.53543951,2495.3,2495.2,1.9240246]
[1725126687830,7.74323951,2495.3,2495.2,1.9240246]
[1725126689430,0.24045,2495.2,2494.6,4.113]
[1725126689633,7.8278,2495.0,2494.9,1.9240246]
[1725126689933,12.10906598,2495.0,2494.8,1.9240246]
[1725126690136,4.28126598,2495.0,2494.9,1.9240246]
[1725126690530,4.29518089,2495.2,2494.9,1.9240246]
[1725126690731,8.06824,2495.3,2494.9,1.9240246]
[1725126691036,4.32178372,2495.2,2494.9,1.9240246]
[1725126694233,3.2078,2495.1,2494.9,1.9240246]
[1725126694645,4.37116978,2495.0,2494.9,1.9240246]
[1725126694835,4.37116978,2495.0,2494.9,2.1644946]
[1725126695138,4.37116978,2495.0,2494.9,1.9240246]
[1725126695342,8.99116978,2495.0,2494.9,1.9240246]
[1725126695537,12.99916978,2495.0,2494.6,0.6171]
[1725126695737,8.99116978,2495.0,2494.8,1.9240246]
[1725126695935,4.008,2494.9,2494.3,0.3709]
[1725126696239,8.0683,2494.7,2494.5,1.9240246]
[1725126696931,0.24051,2494.5,2494.3,0.3709]
[1725126697138,3.44832,2494.4,2494.2,4.113]
[1725126697439,3.44832,2494.4,2493.9,0.7576]
[1725126697440,12.13005651,2494.4,2493.9,0.7576]
[1725126697639,4.30225651,2494.4,2493.9,0.7576]
[1725126697837,4.30225651,2494.4,2494.3,2.1645546]
[1725126698139,3.71365651,2494.4,2494.3,2.1645546]
[1725126698448,7.8278,2495.1,2494.3,1.9240246]
[1725126698642,7.8278,2495.1,2494.8,1.9240246]
[1725126698850,4.24028812,2495.0,2494.8,1.9240246]
[1725126699042,0.24048,2494.9,2494.3,0.24053]
[1725126699356,7.8278,2494.4,2493.7,4.113]
[1725126699651,7.8278,2494.4,2493.5,6.967]
[1725126699652,7.8278,2493.8,2493.4,4.113]
[1725126699836,7.8338042,2493.8,2493.5,1.9240246]
[1725126700042,4.54764094,2493.7,2493.5,1.9240246]
[1725126700444,4.54764094,2493.7,2493.6,1.9240246]
[1725126700640,4.54764094,2493.7,2493.6,2.1646246]
[1725126700840,4.54764094,2493.7,2493.6,1.9240246]
[1725126701035,4.54764094,2493.7,2493.6,2.1646246]